{"text_format":"1","workbook":"xlsx","n_sheets":2,"sheets":["SOMMAIRE","Liste"],"not_rendered":{"charts":0,"images":0,"macros":1,"external_links":0,"defined_names":0,"comments":0,"pivot_tables":0},"unopened":[],"bounds":{"document_bytes":16777216,"sheet_cells":100000,"rows_first":2000,"rows_last":500,"rows_between":2000,"halvings":0,"cell_chars":16384,"cell_head_chars":4096},"cells_cut":0,"cells_raw":0,"read":"whole","date_system":"1900"}

{"sheet":"SOMMAIRE","index":0,"n_rows":22,"n_cols":17,"rows_kept":22,"cut":false,"hidden":false,"merged":[[1,10,3,10],[1,12,3,13],[4,6,4,7],[4,9,4,10]]}
[]
[null,null,null,null,null,null,null,null,null,null,"Choix","🙂","dans la cellule"]
[null,null,null,null,null,null,null,null,null,null,null,"😐"]
[null,null,null,null,null,null,null,null,null,null,null,"🙁"]
[null,null,null,null,null,"Période du",null,null,"Au"]
[]
["Lieu","Thème1"]
["Rhône","🙂",null,"🙁",null,null,null,null,null,null,null,null,null,null,{"$f":"COUNTIF($B$8:$N$8,$A$20)","v":1},{"$f":"COUNTIF($B$8:$N$8,$A$21)","v":0},{"$f":"COUNTIF($B$8:$N$8,$A$22)","v":1}]
["Savoie","🙂",null,"🙁",null,null,null,null,null,null,null,null,null,null,{"$f":"COUNTIF($B$8:$N$8,A$20)","v":1},{"$f":"COUNTIF($B$8:$N$8,B$20)","v":0},0]
["Puy-de Dôme","🙂",null,"🙁",null,null,null,null,null,null,null,null,null,null,1,0,0]
["Haute-Savoie","😐",null,"🙁",null,null,null,null,null,null,null,null,null,null,1,0,0]
["Ardèche","🙂",null,"🙁",null,null,null,null,null,null,null,null,null,null,1,0,0]
["Ain","😐",null,"🙁",null,null,null,null,null,null,null,null,null,null,1,0,0]
["Loire","🙂",null,"🙁",null,null,null,null,null,null,null,null,null,null,1,0,0]
["Haute-Loire","🙂",null,"🙁",null,null,null,null,null,null,null,null,null,null,1,0,0]
["Cantal","😐",null,"🙁",null,null,null,null,null,null,null,null,null,null,1,0,0]
["Isère",null,null,null,null,null,null,null,null,null,null,null,null,null,1,0,0]
["Drôme",null,null,null,null,null,null,null,null,null,null,null,null,null,1,0,0]
["Allier",null,null,null,null,null,null,null,null,null,null,null,null,null,1,0,0]
["🙂",{"$f":"COUNTIF(B$8:B$19,$A20)","v":6},{"$f":"COUNTIF(C$8:C$19,$A20)","v":0},0,0,0,0,0,0,0,0,0,0,0]
["😐",{"$f":"COUNTIF(B$8:B$19,$A21)","v":3},0,0,0,0,0,0,0,0,0,0,0,0]
["🙁",0,0,9,0,0,0,0,0,0,0,0,0,0]

{"sheet":"Liste","index":1,"n_rows":6,"n_cols":2,"rows_kept":6,"cut":false,"hidden":false,"merged":[]}
[]
[]
[]
[null,"🙂"]
[null,"😐"]
[null,"🙁"]